bitfinex-derivatives/quotes_ETHF0:USTF0_20250614
["timestamp","ask_amount","ask_price","bid_price","bid_amount"]
[1749892136470,0.79012,2530.1,2530.0,41.51953802]
[1749892137569,0.7901,2530.2,2530.1,0.79009]
[1749892137864,0.7901,2530.2,2530.1,24.85509]
[1749892138069,0.7901,2530.2,2530.1,35.95897802]
[1749892139270,0.7901,2530.2,2530.1,34.62747802]
[1749892139471,0.7901,2530.2,2530.1,40.03938802]
[1749892140671,0.7901,2530.2,2530.1,40.82950802]
[1749892141172,0.7901,2530.2,2530.1,9.77238802]
[1749892141375,0.7901,2530.2,2530.1,40.03938802]
[1749892141678,0.7901,2530.2,2530.1,6.202]
[1749892141872,0.79021,2529.8,2529.7,3.99802]
[1749892142070,0.79021,2529.8,2529.7,34.26502]
[1749892142367,0.79021,2529.8,2529.7,44.03740802]
[1749892143375,0.79021,2529.8,2529.7,43.24718802]
[1749892144477,0.79021,2529.8,2529.7,44.03742802]
[1749892144969,0.79021,2529.8,2529.7,12.98018802]
[1749892145180,0.79021,2529.8,2529.7,43.24818802]
[1749892145970,1.81262104,2529.8,2529.7,43.24818802]
[1749892146280,1.81262649,2529.8,2529.7,43.24818802]
[1749892146980,1.81262649,2529.8,2529.7,44.03842802]
[1749892148278,1.81262649,2529.8,2529.7,43.24818802]
[1749892148670,0.79021,2529.8,2529.7,43.24818802]
[1749892150186,0.79021,2529.8,2529.7,44.03842802]
[1749892150876,0.79021,2529.8,2529.7,19.97242802]
[1749892151074,0.79021,2529.8,2529.7,40.04238802]
[1749892151779,1.8126268,2529.8,2529.7,40.04238802]
[1749892151984,1.8126268,2529.8,2529.7,40.83262802]
[1749892152177,0.79021,2529.8,2529.7,40.83262802]
[1749892152778,0.79021,2529.8,2529.7,40.04238802]
[1749892153978,0.79021,2529.8,2529.7,40.83262802]
[1749892154178,0.79021,2529.8,2529.7,40.04238802]
[1749892155082,0.79021,2529.8,2529.7,40.83262802]
[1749892155982,0.79021,2529.8,2529.7,40.04238802]
[1749892156180,0.79021,2529.8,2529.7,40.83262802]
[1749892157284,0.79021,2529.8,2529.7,40.04238802]
[1749892158485,0.79021,2529.8,2529.7,40.83262802]
[1749892160689,1.47229,2529.9,2529.8,0.79021]
[1749892160985,0.79019,2529.9,2529.8,10.56259802]
[1749892161186,0.79017,2530.0,2529.9,0.79015]
[1749892161480,1.81473235,2530.0,2529.9,25.51645]
[1749892161693,7.66927329,2530.5,2530.4,0.79002]
[1749892161694,0.79002,2530.5,2530.4,0.79002]
[1749892161881,2.48092515,2530.5,2530.4,24.068]
[1749892162286,0.79009,2530.2,2530.1,0.79011]
[1749892162588,0.79009,2530.2,2530.1,31.06011]
[1749892162778,0.79009,2530.2,2530.1,40.83249802]
[1749892163386,0.79007,2530.3,2530.2,0.79006]
[1749892163581,0.79007,2530.3,2530.2,24.85706]
[1749892163789,0.79007,2530.3,2530.2,34.62944802]
[1749892163980,0.79007,2530.3,2530.2,35.88934802]
[1749892165090,1.45621,2530.5,2530.4,0.79002]
[1749892165386,2.48093043,2530.5,2530.4,33.83938802]
[1749892165591,2.48093043,2530.5,2530.4,24.067]
[1749892167090,2.48093043,2530.5,2530.4,24.85702]
[1749892167586,1.45621,2530.5,2530.4,24.85702]
[1749892167785,3.21372464,2530.6,2530.4,33.83938802]
[1749892167988,3.21372464,2530.6,2530.5,16.76237802]
[1749892167989,4.00370464,2530.6,2530.5,16.76237802]
[1749892168188,5.02753473,2530.6,2530.5,15.97238802]
[1749892168892,1.81973473,2530.6,2530.5,16.76237802]
[1749892169191,0.00592464,2530.6,2530.5,16.76237802]
[1749892169602,0.79588464,2530.6,2530.5,16.76237802]
[1749892169890,1.81959134,2530.6,2530.5,40.03638802]
[1749892170585,1.81959134,2530.6,2530.5,40.82637802]
[1749892170787,0.00592464,2530.6,2530.5,40.82637802]
[1749892171388,0.00592464,2530.6,2530.5,10.56237802]
[1749892171591,0.00592464,2530.6,2530.5,40.82637802]
[1749892173586,0.00592464,2530.6,2530.5,42.10297802]
[1749892173793,0.78991,2530.8,2530.7,0.78993]
[1749892173991,1.41754,2531.0,2530.9,10.56225802]
[1749892174188,1.41754,2531.0,2530.9,40.82525802]
[1749892174788,0.6462,2531.1,2531.0,0.78984]
[1749892174983,1.43602,2531.1,2531.0,10.56222802]
[1749892175894,0.79570464,2531.2,2531.1,0.78981]
[1749892176092,0.79570464,2531.2,2531.1,34.62319802]
[1749892176093,0.00592464,2531.2,2531.1,34.62319802]
[1749892178092,0.00592464,2531.2,2531.1,35.94869802]
[1749892179492,0.00592464,2531.2,2531.1,11.88769802]
[1749892179695,0.00592464,2531.2,2531.1,42.14469802]
[1749892185392,0.00592464,2531.2,2531.0,23.897]
[1749892185393,0.78981,2531.1,2531.0,23.897]
[1749892185584,0.78981,2531.1,2531.0,54.149]
[1749892185790,1.47341,2531.1,2531.0,30.095]
[1749892185990,2.75741,2531.1,2531.0,30.095]
[1749892186192,2.75741,2531.1,2531.0,54.149]
[1749892188904,2.75741,2531.1,2531.0,54.15]
[1749892189490,2.75741,2531.1,2531.0,54.149]
[1749892190200,2.75741,2531.1,2531.0,23.897]
[1749892190400,2.75741,2531.1,2531.0,6.198]
[1749892190401,7.75741,2531.1,2531.0,6.198]
[1749892190699,0.7899,2530.8,2530.7,0.00592464]
[1749892190899,0.7899,2530.8,2530.7,30.25892464]
[1749892191101,0.7899,2530.8,2530.7,6.20392464]
[1749892191602,0.7899,2530.8,2530.7,30.25892464]
[1749892191795,3.9977,2530.8,2530.7,30.25892464]
[1749892192102,3.9977,2530.8,2530.2,24.5366]
[1749892192103,1.97495,2530.6,2530.2,0.79006]
[1749892192303,0.79002,2530.4,2530.3,6.198]
[1749892192494,0.79002,2530.4,2530.3,30.253]
[1749892192694,2.06712,2530.4,2530.3,30.253]
[1749892193500,2.06712,2530.4,2530.3,31.04306]
[1749892195008,0.79002,2530.4,2530.3,31.04306]
[1749892195199,0.79002,2530.4,2530.3,30.253]
[1749892195600,0.79009,2530.2,2530.1,0.7901]
[1749892195899,1.2986,2530.4,2530.0,12.98018802]
[1749892196101,0.79009,2530.2,2530.1,31.0441]
[1749892199806,0.79009,2530.2,2530.1,30.255]
[1749892200009,0.79009,2530.2,2530.1,31.04512]
[1749892201306,0.79009,2530.2,2530.1,30.255]
[1749892201514,0.79009,2530.2,2530.1,31.04512]
[1749892203511,0.79009,2530.2,2530.1,31.04712]
[1749892206211,1.46849,2530.2,2530.1,31.04712]
[1749892209611,1.46849,2530.2,2530.1,30.257]
[1749892210806,1.46849,2530.2,2530.1,31.04712]
[1749892211008,1.46849,2530.2,2530.1,30.257]
[1749892211210,1.46849,2530.2,2530.1,31.04712]
[1749892213411,1.46849,2530.2,2530.1,30.257]
[1749892214513,1.46849,2530.2,2530.1,31.04712]
[1749892215010,1.46849,2530.2,2530.1,30.257]
[1749892215816,1.46849,2530.2,2530.1,40.02938802]
[1749892220614,2.49403449,2530.2,2530.1,40.02938802]
[1749892225219,1.81563449,2530.2,2530.1,40.02938802]
[1749892225519,1.81563449,2530.2,2530.1,40.81950802]
[1749892225919,1.81563449,2530.2,2530.1,42.15380802]
[1749892226321,1.81563449,2530.2,2530.1,40.81950802]
[1749892226524,1.81563449,2530.2,2530.1,40.02938802]
[1749892227223,1.81563449,2530.2,2530.1,40.81950802]
[1749892228326,1.81563449,2530.2,2530.1,16.76050802]
[1749892228626,1.81563449,2530.2,2530.1,40.81850802]
[1749892229026,1.81563449,2530.2,2530.1,42.13690802]
[1749892229425,1.81563449,2530.2,2530.1,41.34678802]
[1749892230238,1.81563449,2530.2,2530.1,42.13690802]
[1749892230442,1.02554449,2530.2,2530.1,42.13690802]
[1749892230937,0.79006,2530.3,2530.2,0.79009]
[1749892231138,1.8169454,2530.3,2530.2,11.86107802]
[1749892231432,3.99778,2530.6,2530.5,0.78999]
[1749892231637,1.02682401,2530.6,2530.5,40.81737802]
[1749892232138,1.81678401,2530.6,2530.5,42.11597802]
[1749892232436,0.78996,2530.6,2530.5,42.11597802]
[1749892234639,0.78996,2530.6,2530.5,40.81737802]
[1749892235536,0.78996,2530.6,2530.5,40.81337802]
[1749892236539,0.78995,2530.7,2530.6,0.78996]
[1749892236740,0.78995,2530.7,2530.6,10.56234802]
[1749892236938,0.78995,2530.7,2530.6,12.55334802]
[1749892237941,0.78992,2530.8,2530.7,0.78988]
[1749892238245,0.78992,2530.8,2530.7,26.19668]
[1749892238444,0.78992,2530.8,2530.7,35.96906802]
[1749892240942,3.2078,2531.0,2530.8,0.78987]
[1749892241138,0.78984,2531.0,2530.9,40.81022802]
[1749892241444,1.81356406,2531.0,2530.9,40.02038802]
[1749892242543,1.81356406,2531.0,2530.9,30.248]
[1749892242849,0.78996,2530.6,2530.5,23.899]
[1749892243040,0.78996,2530.6,2530.5,54.147]
[1749892243344,0.78996,2530.6,2530.5,63.91938802]
[1749892245041,0.78996,2530.6,2530.5,64.70937802]
[1749892245249,0.78996,2530.6,2530.5,67.91717802]
[1749892259455,1.81527467,2530.6,2530.5,67.91717802]
[1749892264359,1.81527467,2530.6,2530.5,64.70337802]
[1749892266960,1.81527467,2530.6,2530.5,34.46137802]
[1749892267157,1.81527467,2530.6,2530.5,64.70237802]
[1749892272062,1.81527467,2530.6,2530.5,40.80337802]
[1749892272453,1.81527467,2530.6,2530.5,10.56237802]
[1749892272660,1.81527467,2530.6,2530.5,40.80237802]
[1749892273365,1.81527467,2530.6,2530.5,44.01017802]
[1749892279767,0.78996,2530.6,2530.5,44.01017802]
[1749892279973,1.81629039,2530.6,2530.5,44.01017802]
[1749892281575,0.78994,2530.8,2530.7,0.78989]
[1749892281775,0.78994,2530.8,2530.7,34.60727802]
[1749892282072,0.78994,2530.8,2530.7,24.045]
[1749892282275,0.78994,2530.8,2530.7,33.81738802]
[1749892282772,0.78996,2530.6,2530.5,3.2078]
[1749892282972,0.78996,2530.6,2530.5,33.4458]
[1749892283168,0.78996,2530.6,2530.5,43.21818802]
[1749892283970,0.78996,2530.6,2530.5,12.98018802]
[1749892284169,0.78996,2530.6,2530.5,43.21718802]
[1749892284977,0.78996,2530.6,2530.5,12.98018802]
[1749892285379,0.78996,2530.6,2530.5,40.00838802]
[1749892287584,0.78996,2530.6,2530.5,9.77238802]
[1749892287785,0.78996,2530.6,2530.5,40.00938802]
[1749892288379,0.78996,2530.6,2530.5,40.00838802]
[1749892293289,0.78996,2530.6,2530.5,40.00338802]
[1749892293690,1.81147992,2530.6,2530.5,40.00338802]
[1749892294683,1.81147992,2530.6,2530.5,6.189]
[1749892295388,0.79005,2530.3,2530.2,3.2078]
[1749892295595,1.81156992,2530.3,2530.2,43.21018802]
[1749892297492,1.81156992,2530.3,2530.2,40.00238802]
[1749892299795,1.81156992,2530.3,2530.2,40.79247802]
[1749892299995,0.79005,2530.3,2530.2,40.79247802]
[1749892300901,0.79005,2530.3,2530.2,40.00238802]
[1749892301597,0.79005,2530.3,2530.2,40.79247802]
[1749892303201,0.79005,2530.3,2530.2,40.00238802]
[1749892303395,0.79005,2530.3,2530.2,40.79247802]
[1749892307507,0.79002,2530.5,2530.4,0.78997]
[1749892307802,0.78995,2530.8,2530.7,0.7899]
[1749892307996,1.80925013,2530.8,2530.7,43.99908802]
[1749892308302,0.78985,2531.0,2530.9,0.78984]
[1749892308505,0.78985,2531.0,2530.9,34.60222802]
[1749892313307,0.79572464,2531.2,2531.1,0.78981]
[1749892313507,1.81339418,2531.2,2531.1,31.01481]
[1749892314714,1.81339418,2531.2,2531.1,30.225]
[1749892316411,1.81339418,2531.2,2531.1,31.01481]
[1749892317713,0.79572464,2531.2,2531.1,31.01481]
[1749892318316,0.79572464,2531.2,2531.1,31.01081]
[1749892320111,0.79572464,2531.2,2531.1,30.221]
[1749892321308,0.79572464,2531.2,2531.1,31.01081]
[1749892321512,0.79572464,2531.2,2531.1,40.78319802]
[1749892321811,0.00592464,2531.2,2531.1,40.78319802]
[1749892322015,0.79569464,2531.2,2531.1,40.78319802]
[1749892322208,0.00592464,2531.2,2531.1,40.78319802]
[1749892322413,0.79569464,2531.2,2531.1,40.78319802]
[1749892323320,0.00592464,2531.2,2531.1,40.78319802]
[1749892323613,0.79569464,2531.2,2531.1,40.78319802]
[1749892324613,0.00592464,2531.2,2531.1,40.78319802]
[1749892324805,5.33333712,2531.6,2531.5,0.78968]
[1749892325011,5.33333712,2531.6,2531.5,40.77506802]
[1749892325206,0.78961,2531.9,2531.8,0.78956]
[1749892325411,0.78961,2531.9,2531.8,30.212]
[1749892326120,1.47871,2531.9,2531.8,30.212]
[1749892326713,0.78962,2531.7,2531.6,0.00592464]
[1749892326912,0.78962,2531.7,2531.6,30.21792464]
[1749892327421,0.78962,2531.7,2531.6,31.00757464]
[1749892328518,0.7896,2531.8,2531.7,0.78959]
[1749892328718,0.7896,2531.8,2531.7,10.56197802]
[1749892329123,2.11448,2531.9,2531.8,0.78959]
[1749892329322,2.11448,2531.9,2531.8,24.81659]
[1749892330427,0.00592464,2532.1,2532.0,0.78953]
[1749892330724,0.79544464,2532.1,2532.0,40.77191802]
[1749892331328,0.00592464,2532.1,2532.0,40.77191802]
[1749892331926,0.79541464,2532.1,2532.0,40.77191802]
[1749892332723,0.00592464,2532.1,2532.0,40.77191802]
[1749892332925,0.00592464,2532.1,2532.0,42.10661802]
[1749892333327,0.79541464,2532.1,2532.0,42.10661802]
[1749892333629,0.00592464,2532.1,2532.0,42.10661802]
[1749892335726,0.79541464,2532.1,2532.0,42.10661802]
[1749892336625,0.00592464,2532.1,2532.0,42.10661802]
[1749892338133,0.00592464,2532.1,2532.0,42.09861802]
[1749892339236,0.79541464,2532.1,2532.0,42.09861802]
[1749892339541,0.00592464,2532.1,2532.0,42.09861802]
[1749892340035,0.79541464,2532.1,2532.0,42.09861802]
[1749892340441,0.79541464,2532.1,2532.0,10.56191802]
[1749892340734,0.79541464,2532.1,2532.0,40.76091802]
[1749892346849,0.79541464,2532.1,2532.0,40.75891802]
[1749892347249,0.79541464,2532.1,2532.0,10.56191802]
[1749892347548,0.79541464,2532.1,2532.0,40.75791802]
[1749892352650,0.79541464,2532.1,2532.0,30.98553]
[1749892352951,0.79541464,2532.1,2532.0,40.75791802]
[1749892360256,0.79541464,2532.1,2532.0,41.38911802]
[1749892362662,1.81364935,2532.1,2532.0,41.38911802]
[1749892363260,1.81368039,2532.1,2532.0,41.38911802]
[1749892364168,1.81368039,2532.1,2532.0,40.75791802]
[1749892377883,1.02419039,2532.1,2532.0,42.01221802]
[1749892378876,1.81368039,2532.1,2532.0,10.56191802]
[1749892379077,1.81368039,2532.1,2532.0,40.74491802]
[1749892381681,1.81129218,2532.1,2532.0,40.74491802]
[1749892383587,0.79541464,2532.1,2532.0,40.74491802]
[1749892384491,0.00592464,2532.1,2532.0,40.74491802]
[1749892385983,0.6593,2532.4,2532.3,0.78943]
[1749892386190,1.01595914,2532.7,2532.3,35.74997802]
[1749892386384,1.01597111,2532.6,2532.5,10.56175802]
[1749892386679,0.6466,2532.8,2532.7,10.56169802]
[1749892386885,1.01517138,2532.8,2532.7,33.77638802]
[1749892387086,1.01517138,2532.8,2532.7,34.56569802]
[1749892387481,0.6466,2532.9,2532.8,0.78928]
[1749892387682,1.66114233,2532.9,2532.8,19.94046802]
[1749892388483,0.6466,2532.9,2532.8,19.94046802]
[1749892388689,1.43585,2532.9,2532.8,19.94046802]
[1749892389087,1.48383464,2533.0,2532.9,0.78925]
[1749892389281,1.34092464,2533.0,2532.9,34.56263802]
[1749892389482,2.13013464,2533.0,2532.9,34.56263802]
[1749892389692,0.00592464,2533.0,2532.9,34.56263802]
[1749892390387,0.79513464,2533.0,2532.9,39.94438802]
[1749892390686,0.00592464,2533.0,2532.9,40.73362802]
[1749892400800,0.79513464,2533.0,2532.9,43.94142802]
[1749892401997,0.00592464,2533.0,2532.9,43.94142802]
[1749892402198,0.79513464,2533.0,2532.9,43.93242802]
[1749892402800,0.00592464,2533.0,2532.9,43.93242802]
[1749892404397,0.79513464,2533.0,2532.9,43.93242802]
[1749892404801,0.00592464,2533.0,2532.9,43.93242802]
[1749892405299,0.79513464,2533.0,2532.9,43.93242802]
[1749892405994,0.79513464,2533.0,2532.9,9.3778]
[1749892406201,0.78924,2532.9,2532.8,6.17]
[1749892406403,5.32484,2532.9,2532.8,5.1334]
[1749892406592,11.33462693,2532.9,2532.8,5.1334]
[1749892406797,11.33462693,2532.9,2532.8,29.1244]
[1749892409796,11.33462693,2532.9,2532.7,30.051]
[1749892409797,0.78928,2532.8,2532.7,30.051]
[1749892410005,4.45986693,2532.8,2532.7,54.043]
[1749892410197,9.45986693,2532.8,2532.7,54.043]
[1749892411306,0.7894,2532.4,2532.3,3.99722]
[1749892411505,0.7894,2532.4,2532.3,34.15822]
[1749892414209,0.7894,2532.4,2532.3,33.3688]
[1749892414611,0.7894,2532.4,2532.3,34.15823]
[1749892414904,0.7894,2532.4,2532.3,33.3688]
[1749892415503,0.7894,2532.4,2532.3,3.2078]
[1749892415709,0.7894,2532.4,2532.3,9.3738]
[1749892415905,0.7894,2532.4,2532.3,33.3668]
[1749892416405,1.4475,2532.4,2532.3,33.3668]
[1749892417002,1.4475,2532.4,2532.3,30.158]
[1749892417204,1.4475,2532.4,2532.3,6.166]
[1749892417402,1.4475,2532.4,2532.3,30.158]
[1749892418004,1.4475,2532.4,2532.3,30.159]
[1749892422411,1.97364,2532.3,2531.9,27.87334]
[1749892422604,1.97371,2532.2,2532.0,9.77238802]
[1749892422909,0.78949,2532.1,2532.0,40.72191802]
[1749892423209,0.78949,2532.1,2532.0,16.72891802]
[1749892423406,0.78953,2532.0,2531.9,23.876]
[1749892423704,0.78953,2532.0,2531.9,54.036]
[1749892423705,1.46583,2532.0,2531.9,54.036]
[1749892423903,4.67363,2532.0,2531.9,54.036]
[1749892424103,4.67363,2532.0,2531.9,30.043]
[1749892424299,6.94609859,2532.0,2531.9,54.036]
[1749892424609,6.94609859,2532.0,2531.9,23.876]
[1749892424903,6.94609859,2532.0,2531.9,54.036]
[1749892425509,6.94609859,2532.0,2531.9,6.167]
[1749892425710,6.94609859,2532.0,2531.9,30.16]
[1749892425909,6.94609859,2532.0,2531.9,6.167]
[1749892426111,6.94609859,2532.0,2531.9,30.16]
[1749892426312,6.94609859,2532.0,2531.6,0.00592464]
[1749892426313,0.78962,2531.7,2531.6,0.00592464]
[1749892426515,0.78962,2531.7,2531.6,30.16692464]
[1749892427017,0.78962,2531.7,2531.6,6.17392464]
[1749892427420,0.78962,2531.7,2531.6,30.16892464]
[1749892427606,0.78962,2531.7,2531.6,24.00092464]
[1749892428412,0.78962,2531.7,2531.6,0.00592464]
[1749892428611,0.78962,2531.7,2531.6,24.00092464]
[1749892429008,10.00152979,2531.7,2531.6,4.64e-06]
[1749892439511,11.28912979,2531.7,2531.6,4.64e-06]
[1749892440517,35.28912979,2531.7,2531.6,4.64e-06]
[1749892440717,37.70874193,2531.7,2531.6,4.64e-06]
[1749892441023,35.35790864,2531.7,2531.6,4.64e-06]
[1749892441223,13.70422333,2531.7,2531.6,4.64e-06]
[1749892441415,11.35790864,2531.7,2531.6,4.64e-06]
[1749892445529,6.35790864,2531.7,2531.6,4.64e-06]
[1749892446728,8.70422333,2531.7,2531.6,4.64e-06]
[1749892449727,6.35790864,2531.7,2531.6,4.64e-06]
[1749892451920,11.35790864,2531.7,2531.6,4.64e-06]
[1749892453432,6.35790864,2531.7,2531.6,4.64e-06]
[1749892453733,9.49966125,2531.7,2531.6,4.64e-06]
[1749892455332,33.50266125,2531.7,2531.6,4.64e-06]
[1749892455735,34.18416125,2531.7,2531.6,4.64e-06]
[1749892456629,29.75480864,2531.7,2531.6,4.64e-06]
[1749892460732,32.90170008,2531.7,2531.6,4.64e-06]
[1749892463943,8.21720008,2531.7,2531.6,4.64e-06]
[1749892464142,32.21820008,2531.7,2531.6,4.64e-06]
[1749892464936,29.07130864,2531.7,2531.6,4.64e-06]
[1749892465141,0.78974,2531.3,2531.2,1.3433]
[1749892465341,6.35852243,2531.3,2531.2,1.3433]
[1749892465537,7.36263222,2531.3,2531.2,1.3433]
[1749892476455,4.15483222,2531.3,2531.2,1.3433]
[1749892476650,7.36263222,2531.3,2531.2,11.11568802]
[1749892482253,5.00164979,2531.3,2531.2,11.11568802]
[1749892484668,7.36424641,2531.3,2531.2,11.11568802]
[1749892495476,1.79384979,2531.3,2531.2,11.11568802]
[1749892497879,5.00164979,2531.3,2531.2,17.28068802]
[1749892498073,5.00164979,2531.3,2531.2,9.77238802]
[1749892498680,5.64414979,2531.3,2531.2,9.77238802]
[1749892499576,5.00164979,2531.3,2531.2,9.77238802]
[1749892499879,5.00164979,2531.3,2531.2,11.78678802]
[1749892500581,5.00164979,2531.3,2531.2,17.57656802]
[1749892500774,5.00164979,2531.3,2531.2,16.78678802]
[1749892501277,5.00164979,2531.3,2531.2,17.57656802]
[1749892501475,1.00410979,2531.3,2531.2,44.77836802]
[1749892501774,0.78971,2531.4,2531.3,0.78971]
[1749892501980,1.80056798,2531.4,2531.3,2.03571]
[1749892502178,1.01085798,2531.4,2531.3,16.80809802]
[1749892502380,0.00592464,2531.5,2531.4,0.78971]
[1749892502677,0.00592464,2531.5,2531.4,11.80809802]
[1749892502982,0.00592464,2531.5,2531.4,17.44279802]
[1749892503471,0.79560464,2531.5,2531.4,17.44279802]
[1749892505680,0.79560464,2531.5,2531.4,16.65308802]
[1749892505881,0.79560464,2531.5,2531.4,46.80408802]
[1749892506278,0.79560464,2531.5,2531.4,11.65308802]
[1749892506483,0.79560464,2531.5,2531.4,42.59279802]
[1749892509287,0.79560464,2531.5,2531.4,12.44279802]
[1749892509588,0.79560464,2531.5,2531.4,42.59179802]
[1749892510586,0.00592464,2531.5,2531.4,47.59179802]
[1749892511390,0.00592464,2531.5,2531.4,50.79959802]
[1749892511691,0.79560464,2531.5,2531.4,50.79959802]
[1749892511983,0.00592464,2531.5,2531.4,50.79959802]
[1749892512989,0.79560464,2531.5,2531.4,45.79959802]
[1749892513285,0.79560464,2531.5,2531.4,45.79759802]
[1749892514192,0.79560464,2531.5,2531.4,44.55159802]
[1749892514393,0.79560464,2531.5,2531.4,14.40459802]
[1749892514696,0.79560464,2531.5,2531.4,15.93238802]
[1749892515096,1.80300049,2531.5,2531.4,39.91838802]
[1749892516392,1.80300049,2531.5,2531.4,9.77238802]
[1749892516593,0.78977,2531.2,2531.1,3.8937]
[1749892516796,0.78977,2531.2,2531.1,34.0397]
[1749892517092,0.78977,2531.2,2531.1,43.81208802]
[1749892519093,0.78977,2531.2,2531.1,12.98018802]
[1749892519394,0.78981,2531.1,2531.0,0.00592464]
[1749892519601,0.79007,2530.3,2530.2,33.3538]
[1749892519791,0.79005,2530.4,2530.2,34.14389]
[1749892519985,0.79005,2530.4,2530.3,10.41238802]
[1749892520192,0.6825,2531.0,2530.3,12.32468802]
[1749892520395,0.78996,2530.7,2530.6,3.2078]
[1749892520595,0.78996,2530.7,2530.6,33.3648]
[1749892520797,0.78996,2530.7,2530.6,43.13718802]
[1749892520990,0.78996,2530.7,2530.6,43.78678802]
[1749892521193,0.78996,2530.7,2530.6,13.62978802]
[1749892521394,0.78996,2530.7,2530.6,43.78478802]
[1749892524892,0.78996,2530.7,2530.6,37.62478802]
[1749892525201,0.78996,2530.7,2530.6,12.98018802]
[1749892525698,0.78996,2530.7,2530.6,39.92238802]
[1749892526398,0.79002,2530.4,2530.3,3.2078]
[1749892526701,0.79002,2530.4,2530.3,33.3588]
[1749892526896,0.79002,2530.4,2530.3,12.98018802]
[1749892527096,0.79002,2530.4,2530.3,43.13718802]
[1749892529090,0.79002,2530.4,2530.3,43.92724802]
[1749892529295,0.79002,2530.4,2530.3,43.13718802]
[1749892531202,0.79002,2530.4,2530.3,43.92724802]
[1749892531402,0.79002,2530.4,2530.3,43.13718802]
[1749892532602,0.79002,2530.4,2530.3,43.92724802]
[1749892533696,0.79002,2530.4,2530.3,43.13718802]
[1749892534594,0.79001,2530.5,2530.3,43.13718802]
[1749892534800,0.78996,2530.6,2530.5,9.77238802]
[1749892534990,0.78996,2530.6,2530.5,33.76538802]
[1749892539094,0.78996,2530.6,2530.5,34.55537802]
[1749892539302,0.78994,2530.8,2530.5,35.74036802]
[1749892539499,0.78994,2530.8,2530.7,10.56229802]
[1749892539700,0.78994,2530.8,2530.7,40.71729802]
[1749892539896,0.78989,2530.9,2530.8,0.78987]
[1749892540096,0.78989,2530.9,2530.8,1.45517]
[1749892540300,0.78989,2530.9,2530.8,11.22755802]
[1749892540706,0.78986,2531.0,2530.9,0.78985]
[1749892541006,0.78986,2531.0,2530.9,33.76638802]
[1749892544510,1.79960474,2531.0,2530.9,33.76638802]
[1749892545399,1.79960474,2531.0,2530.9,34.55625802]
[1749892545601,1.79960474,2531.0,2530.9,35.92575802]
[1749892551004,1.79960474,2531.0,2530.9,35.13588802]
[1749892551607,1.79960474,2531.0,2530.9,33.76638802]
[1749892552003,1.79960474,2531.0,2530.9,15.93238802]
[1749892552217,5.00740474,2531.0,2530.9,39.92438802]
[1749892552912,5.00740474,2531.0,2530.9,9.77238802]
[1749892553115,5.00740474,2531.0,2530.9,39.92438802]
[1749892554318,1.79960474,2531.0,2530.9,39.92438802]
[1749892554513,1.79960474,2531.0,2530.9,40.71425802]
[1749892554717,1.79960474,2531.0,2530.9,41.36095802]
[1749892555310,1.79960474,2531.0,2530.9,42.62825802]
[1749892558022,1.79958474,2531.0,2530.9,42.62825802]
[1749892560128,1.00974474,2531.0,2530.9,42.62825802]
[1749892560428,1.79958474,2531.0,2530.9,42.62825802]
[1749892560821,2.61649,2531.3,2531.0,0.78984]
[1749892560822,0.78983,2531.1,2531.0,0.78984]
[1749892561025,1.80194616,2531.1,2531.0,24.77984]
[1749892561223,1.80194616,2531.1,2531.0,33.76238802]
[1749892562731,1.80194616,2531.1,2531.0,34.55222802]
[1749892563428,1.80194616,2531.1,2531.0,33.76238802]
[1749892564320,1.80194616,2531.1,2531.0,34.55222802]
[1749892568528,1.80310457,2531.1,2531.0,34.55222802]
[1749892568924,1.80310457,2531.1,2531.0,10.56222802]
[1749892569129,1.80310457,2531.1,2531.0,34.55122802]
[1749892576545,1.80308457,2531.1,2531.0,34.55122802]
[1749892584149,1.01327457,2531.1,2531.0,34.55122802]
[1749892584651,0.6421,2531.3,2531.2,0.78977]
[1749892584953,1.01385102,2531.3,2531.2,37.75595802]
[1749892585154,7.21412812,2531.5,2531.4,0.78971]
[1749892585350,7.43843207,2531.5,2531.4,40.70709802]
[1749892585552,1.01990859,2531.5,2531.4,40.70709802]
[1749892585747,0.00592464,2531.5,2531.4,40.70709802]
[1749892586152,0.79560464,2531.5,2531.4,40.70709802]
[1749892586353,0.00592464,2531.5,2531.4,40.70709802]
[1749892586555,0.79560464,2531.5,2531.4,40.70709802]
[1749892586759,0.00592464,2531.5,2531.4,40.70709802]
[1749892587752,0.79560464,2531.5,2531.4,40.70709802]
[1749892588958,0.00592464,2531.5,2531.4,40.70709802]
[1749892589159,0.79560464,2531.5,2531.4,40.70709802]
[1749892593266,0.00592464,2531.5,2531.4,40.70709802]
[1749892595358,0.00592464,2531.5,2531.4,41.99629802]
[1749892597060,0.79560464,2531.5,2531.4,41.99629802]
[1749892597866,0.00592464,2531.5,2531.4,41.99629802]
[1749892601465,0.00592464,2531.5,2531.4,40.70709802]
[1749892610383,0.6864,2531.8,2531.7,0.78962]
[1749892610578,0.6864,2531.8,2531.7,34.53900802]
[1749892610783,1.01288231,2531.8,2531.7,34.53900802]
[1749892610974,1.44425,2532.0,2531.9,0.78956]
[1749892611176,1.44425,2532.0,2531.9,40.69394802]
[1749892611177,2.45714621,2532.0,2531.9,40.69394802]
[1749892613682,1.66759621,2532.0,2531.9,40.69394802]
[1749892614186,0.00592464,2532.2,2532.1,0.78949]
[1749892614383,0.00592464,2532.2,2532.1,34.53787802]
[1749892614874,0.00592464,2532.2,2532.1,36.52357802]
[1749892616184,3.2078,2532.5,2532.4,0.7894]
[1749892616383,3.99717,2532.5,2532.4,40.69078802]
[1749892618385,0.78937,2532.5,2532.4,40.69078802]
[1749892618590,0.6425,2532.6,2532.5,0.78937]
[1749892618787,0.6425,2532.6,2532.5,10.56175802]
[1749892620591,0.00592464,2532.7,2532.6,0.78934]
[1749892620787,0.00592464,2532.7,2532.6,34.53272802]
[1749892623298,0.79523464,2532.7,2532.6,40.68372802]
[1749892623498,2.79743464,2532.7,2532.6,40.68372802]
[1749892626501,0.67302464,2532.7,2532.6,40.68372802]
[1749892627594,0.00592464,2532.7,2532.6,40.68372802]
[1749892627898,0.00592464,2532.7,2532.6,43.89152802]
[1749892631104,0.00592464,2532.7,2532.6,45.27112802]
[1749892632096,1.43001,2533.0,2532.9,0.78924]
[1749892632305,1.43001,2533.0,2532.9,34.52562802]
[1749892632500,0.625,2533.2,2533.1,0.78918]
[1749892632705,0.6229,2533.2,2533.1,40.67556802]
[1749892632906,0.78911,2533.4,2533.3,0.78912]